fUST/lending_fUST_20250606
["ID","MTS","AMOUNT","RATE_DAILY","PERIOD"]
[364712373,1749216153436,-440.0,0.00019452,2]
[364712374,1749216153459,-525.48400121,0.00019452,2]
[364712375,1749216153483,-440.0,0.00019452,2]
[364712376,1749216153506,-440.0,0.00019452,2]
[364712377,1749216153530,-441.88165657,0.00019452,2]
[364712378,1749216153554,-440.0,0.00019452,2]
[364712379,1749216153577,-315.68892623,0.00019452,2]
[364712380,1749216153600,-439.52261353,0.00019452,2]
[364712381,1749216153623,-440.0,0.00019452,2]
[364712382,1749216153646,-440.0,0.00019452,2]
[364712383,1749216153671,-440.0,0.00019452,2]
[364712384,1749216153694,-440.0,0.00019452,2]
[364712385,1749216153719,-440.0,0.00019452,2]
[364712386,1749216153742,-440.0,0.00019452,2]
[364712387,1749216153766,-440.0,0.00019452,2]
[364712388,1749216153791,-440.0,0.00019452,2]
[364712389,1749216153814,-440.0,0.00019452,2]
[364712390,1749216153837,-440.0,0.00019452,2]
[364712391,1749216153859,-440.0,0.00019452,2]
[364712392,1749216153884,-227.35690632,0.00019452,2]
[364712393,1749216153906,-430.0,0.00019452,2]
[364712394,1749216153929,-406.5904271,0.00019452,2]
[364712395,1749216153952,-440.0,0.00019452,2]
[364712396,1749216153977,-440.0,0.00019452,2]
[364712397,1749216153999,-440.0,0.00019452,2]
[364712398,1749216154021,-440.0,0.00019452,2]
[364712399,1749216154044,-248.96000003,0.00019452,2]
[364712400,1749216154066,-396.43430795,0.00019452,2]
[364712401,1749216154092,-471.87,0.00019452,2]
[364712402,1749216154116,-440.0,0.00019452,2]
[364712403,1749216154139,-387.06173836,0.00019452,2]
[364712404,1749216154162,-578.40060843,0.00019452,2]
[364712405,1749216154185,-440.0,0.00019452,2]
[364712406,1749216154209,-440.0,0.00019452,2]
[364712407,1749216154232,-440.0,0.00019452,2]
[364712408,1749216154255,-440.0,0.00019452,2]
[364712409,1749216154277,-404.75832504,0.00019452,2]
[364712410,1749216154302,-440.0,0.00019452,2]
[364712411,1749216154325,-427.34915111,0.00019452,2]
[364712412,1749216154347,-440.0,0.00019452,2]
[364712413,1749216154369,-440.0,0.00019452,2]
[364712414,1749216154395,-1728.71,0.00019452,2]
[364712415,1749216154419,-442.891128,0.00019452,2]
[364712416,1749216154442,-395.60790859,0.00019452,2]
[364712417,1749216154468,-440.0,0.00019452,2]
[364712418,1749216154495,-1131.64,0.00019452,2]
[364712419,1749216154521,-440.0,0.00019452,2]
[364712420,1749216154546,-440.0,0.00019452,2]
[364712421,1749216154573,-440.0,0.00019452,2]
[364712422,1749216154598,-440.0,0.00019452,2]
[364712423,1749216154624,-2097.68,0.00019452,2]
[364712424,1749216154646,-440.0,0.00019452,2]
[364712425,1749216154671,-1330.0,0.00019452,2]
[364712426,1749216154695,-3470.78,0.00019452,2]
[364712427,1749216154721,-440.0,0.00019452,2]
[364712428,1749216154872,-440.0,0.00019452,2]
[364712429,1749216154896,-440.0,0.00019452,2]
[364712430,1749216154919,-440.0,0.00019452,2]
[364712431,1749216154946,-480.66,0.00019452,2]
[364712432,1749216154972,-474.92142264,0.00019452,2]
[364712433,1749216154996,-440.0,0.00019452,2]
[364712434,1749216155023,-440.0,0.00019452,2]
[364712435,1749216155047,-449.89700149,0.00019452,2]
[364712436,1749216155073,-554.61,0.00019452,2]
[364712437,1749216155098,-440.0,0.00019452,2]
[364712438,1749216155121,-440.0,0.00019452,2]
[364712439,1749216155144,-440.0,0.00019452,2]
[364712440,1749216155168,-440.0,0.00019452,2]
[364712441,1749216155192,-725.81,0.00019452,2]
[364712442,1749216155217,-440.0,0.00019452,2]
[364712443,1749216155240,-842.08,0.00019452,2]
[364712444,1749216155264,-440.0,0.00019452,2]
[364712445,1749216155287,-440.0,0.00019452,2]
[364712446,1749216155312,-440.0,0.00019452,2]
[364712447,1749216155336,-440.0,0.00019452,2]
[364712448,1749216155359,-426.5246249,0.00019452,2]
[364712449,1749216155382,-440.0,0.00019452,2]
[364712450,1749216155407,-440.0,0.00019452,2]
[364712451,1749216155430,-440.0,0.00019452,2]
[364712452,1749216155454,-497.11,0.00019452,2]
[364712453,1749216155478,-440.0,0.00019452,2]
[364712454,1749216155501,-165.91499536,0.00019452,2]
[364712455,1749216155525,-279.4512484,0.00019452,2]
[364712456,1749216155547,-440.0,0.00019452,2]
[364712457,1749216155571,-440.0,0.00019452,2]
[364712458,1749216155593,-440.0,0.00019452,2]
[364712459,1749216155616,-440.0,0.00019452,2]
[364712460,1749216155639,-440.0,0.00019452,2]
[364712461,1749216155663,-531.61,0.00019452,2]
[364712462,1749216155686,-440.0,0.00019452,2]
[364712463,1749216155712,-837.64,0.00019452,2]
[364712464,1749216155734,-440.0,0.00019452,2]
[364712465,1749216155756,-440.0,0.00019452,2]
[364712466,1749216155777,-386.60819042,0.00019452,2]
[364712467,1749216155801,-440.0,0.00019452,2]
[364712468,1749216155823,-440.0,0.00019452,2]
[364712469,1749216155845,-440.0,0.00019452,2]
[364712470,1749216155868,-440.0,0.00019452,2]
[364712471,1749216155890,-440.0,0.00019452,2]
[364712472,1749216155912,-440.0,0.00019452,2]
[364712473,1749216155934,-440.0,0.00019452,2]
[364712474,1749216155958,-440.0,0.00019452,2]
[364712475,1749216155982,-440.0,0.00019452,2]
[364712476,1749216156006,-440.0,0.00019452,2]
[364712477,1749216156031,-309.55818577,0.00019452,2]
[364712478,1749216156055,-649.43,0.00019452,2]
[364712479,1749216156077,-430.0,0.00019452,2]
[364712480,1749216156098,-440.0,0.00019452,2]
[364712481,1749216156119,-440.0,0.00019452,2]
[364712482,1749216156139,-194.45383308,0.00019452,2]
[364712483,1749216156160,-2506.99,0.00019452,2]
[364712484,1749216156182,-488.60808731,0.00019452,2]
[364712485,1749216156207,-440.0,0.00019452,2]
[364712486,1749216156232,-1792.59,0.00019452,2]
[364712487,1749216156257,-440.0,0.00019452,2]
[364712488,1749216156282,-783.69,0.00019452,2]
[364712489,1749216156308,-440.0,0.00019452,2]
[364712490,1749216156331,-433.71564651,0.00019452,2]
[364712491,1749216156359,-1568.96,0.00019452,2]
[364712492,1749216156382,-440.0,0.00019452,2]
[364712493,1749216156407,-440.0,0.00019452,2]
[364712494,1749216156431,-440.0,0.00019452,2]
[364712495,1749216156454,-430.0,0.00019452,2]
[364712496,1749216156478,-440.0,0.00019452,2]
[364712497,1749216156502,-500.0,0.00019452,2]
[364712498,1749216156524,-600.0,0.000195,2]
[364712499,1749216156547,-500.0,0.00019557,2]
[364712500,1749216156569,-500.0,0.00019557,2]
[364712501,1749216156593,-500.57114652,0.00019557,2]
[364712502,1749216156616,-500.0,0.00019557,2]
[364712503,1749216156639,-501.37251406,0.00019693,2]
[364712504,1749216156661,-500.50538099,0.00019693,2]
[364712505,1749216156684,-532.98731685,0.00019693,2]
[364712506,1749216156708,-500.0,0.00019693,2]
[364712507,1749216156730,-550.41727479,0.00019693,2]
[364712508,1749216156753,-1000.0,0.00019721,2]
[364712509,1749216156777,-1000.0,0.00019721,2]
[364712510,1749216156802,-357.41258494,0.00019721,2]
[364712511,1749216156824,-500.0,0.00019721,2]
[364712512,1749216156847,-500.0,0.00019721,2]
[364712513,1749216156869,-490.71875841,0.00019721,2]
[364712514,1749216156893,-500.0,0.00019721,2]
[364712515,1749216156917,-440.0,0.00019726,2]
[364712516,1749216156941,-440.0,0.00019726,2]
[364712517,1749216156965,-440.0,0.00019726,2]
[364712518,1749216156989,-440.0,0.00019726,2]
[364712519,1749216157011,-440.0,0.00019726,2]
[364712520,1749216157034,-499.04,0.00019726,2]
[364712521,1749216157058,-440.0,0.00019726,2]
[364712522,1749216157081,-440.0,0.00019726,2]
[364712523,1749216157104,-434.01501549,0.00019726,2]
[364712524,1749216157126,-313.78525752,0.00019726,2]
[364712525,1749216157149,-306.33,0.00019726,2]
[364712526,1749216157174,-471.87,0.00019726,2]
[364712527,1749216157196,-440.0,0.00019726,2]
[364712528,1749216157219,-440.0,0.00019726,2]
[364712529,1749216157245,-1728.71,0.00019726,2]
[364712530,1749216157269,-1131.64,0.00019726,2]
[364712531,1749216157292,-440.0,0.00019726,2]
[364712532,1749216157317,-440.0,0.00019726,2]
[364712533,1749216157342,-2097.68,0.00019726,2]
[364712534,1749216157368,-1330.0,0.00019726,2]
[364712535,1749216157393,-3470.78,0.00019726,2]
[364712536,1749216157416,-440.0,0.00019726,2]
[364712537,1749216157440,-380.0,0.00019726,2]
[364712538,1749216157466,-480.66,0.00019726,2]
[364712539,1749216157490,-440.0,0.00019726,2]
[364712540,1749216157514,-440.0,0.00019726,2]
[364712541,1749216157539,-554.61,0.00019726,2]
[364712542,1749216157564,-440.0,0.00019726,2]
[364712543,1749216157588,-430.0,0.00019726,2]
[364712544,1749216157611,-430.0,0.00019726,2]
[364712545,1749216157635,-440.0,0.00019726,2]
[364712546,1749216157663,-725.81,0.00019726,2]
[364712547,1749216157686,-440.0,0.00019726,2]
[364712548,1749216157711,-842.08,0.00019726,2]
[364712549,1749216157734,-350.0,0.00019726,2]
[364712550,1749216157757,-440.0,0.00019726,2]
[364712551,1749216157781,-430.0,0.00019726,2]
[364712552,1749216157807,-440.0,0.00019726,2]
[364712553,1749216157831,-440.0,0.00019726,2]
[364712554,1749216157854,-440.0,0.00019726,2]
[364712555,1749216157880,-497.11,0.00019726,2]
[364712556,1749216157904,-263.80503044,0.00019726,2]
[364712557,1749216157928,-419.65338663,0.00019726,2]
[364712558,1749216157952,-440.0,0.00019726,2]
[364712559,1749216157978,-440.0,0.00019726,2]
[364712560,1749216158003,-531.61,0.00019726,2]
[364712561,1749216158028,-837.64,0.00019726,2]
[364712562,1749216158052,-370.0,0.00019726,2]
[364712563,1749216158077,-440.0,0.00019726,2]
[364712564,1749216158100,-440.0,0.00019726,2]
[364712565,1749216158125,-440.0,0.00019726,2]
[364712566,1749216158149,-474.13494132,0.00019726,2]
[364712567,1749216158173,-440.0,0.00019726,2]
[364712568,1749216158197,-440.0,0.00019726,2]
[364712569,1749216158221,-649.43,0.00019726,2]
[364712570,1749216158246,-440.0,0.00019726,2]
[364712571,1749216158268,-321.23305942,0.00019726,2]
[364712572,1749216158290,-2506.99,0.00019726,2]
[364712573,1749216158315,-440.0,0.00019726,2]
[364712574,1749216158341,-1792.59,0.00019726,2]
[364712575,1749216158372,-440.0,0.00019726,2]
[364712576,1749216158398,-783.69,0.00019726,2]
[364712577,1749216158424,-440.0,0.00019726,2]
[364712578,1749216158451,-1568.96,0.00019726,2]
[364712579,1749216158476,-440.0,0.00019726,2]
[364712580,1749216158501,-440.0,0.00019726,2]
[364712581,1749216158524,-5041.04374426,0.00019897,2]
[364712582,1749216158548,-440.0,0.0002,2]
[364712583,1749216158573,-440.0,0.0002,2]
[364712584,1749216158600,-440.0,0.0002,2]
[364712585,1749216158622,-499.04,0.0002,2]
[364712586,1749216158646,-471.87,0.0002,2]
[364712587,1749216158669,-440.0,0.0002,2]
[364712588,1749216158695,-1728.71,0.0002,2]
[364712589,1749216158722,-1131.64,0.0002,2]
[364712590,1749216158747,-440.0,0.0002,2]
[364712591,1749216158771,-440.0,0.0002,2]
[364712592,1749216158798,-2097.68,0.0002,2]
[364712593,1749216158823,-1330.0,0.0002,2]
[364712594,1749216158849,-3470.78,0.0002,2]
[364712595,1749216158873,-210.28477943,0.0002,2]
[364712596,1749216158898,-480.66,0.0002,2]
[364712597,1749216159050,-440.0,0.0002,2]
[364712598,1749216159077,-554.61,0.0002,2]
[364712599,1749216159102,-440.0,0.0002,2]
[364712600,1749216159126,-440.0,0.0002,2]
[364712601,1749216159150,-725.81,0.0002,2]
[364712602,1749216159175,-440.0,0.0002,2]
[364712603,1749216159199,-842.08,0.0002,2]
[364712604,1749216159224,-440.0,0.0002,2]
[364712605,1749216159247,-521.35225044,0.0002,2]
[364712606,1749216159271,-440.0,0.0002,2]
[364712607,1749216159295,-440.0,0.0002,2]
[364712608,1749216159318,-497.11,0.0002,2]
[364712609,1749216159344,-440.0,0.0002,2]
[364712610,1749216159369,-440.0,0.0002,2]
[364712611,1749216159398,-531.61,0.0002,2]
[364712612,1749216159426,-837.64,0.0002,2]
[364712613,1749216159450,-440.0,0.0002,2]
[364712614,1749216159477,-420.0,0.0002,2]
[364712615,1749216159503,-440.0,0.0002,2]
[364712616,1749216159528,-440.0,0.0002,2]
[364712617,1749216159553,-430.0,0.0002,2]
[364712618,1749216159580,-649.43,0.0002,2]
[364712619,1749216159605,-440.0,0.0002,2]
[364712620,1749216159629,-2506.99,0.0002,2]
[364712621,1749216159654,-286.24906719,0.0002,2]
[364712622,1749216159680,-1792.59,0.0002,2]
[364712623,1749216159706,-440.0,0.0002,2]
[364712624,1749216159735,-783.69,0.0002,2]
[364712625,1749216159759,-440.0,0.0002,2]
[364712626,1749216159787,-1568.96,0.0002,2]
[364712627,1749216159813,-440.0,0.0002,2]
[364712628,1749216159837,-163.52,0.0002,2]
[364712629,1749216159859,-500.0,0.00020076,2]
[364712630,1749216160096,-151.59,0.00020077,2]
[364712631,1749216160119,-481.30633782,0.00020105,2]
[364712632,1749216160140,-1000.0,0.00020105,2]
[364712633,1749216160162,-504.89682241,0.00020268,2]
[364712634,1749216160184,-500.0,0.00020268,2]
[364712635,1749216160206,-1000.0,0.00020269,2]
[364712636,1749216160230,-440.0,0.00020273,2]
[364712637,1749216160252,-440.0,0.00020273,2]
[364712638,1749216160274,-576.08,0.00020273,2]
[364712639,1749216160297,-499.04,0.00020273,2]
[364712640,1749216160323,-471.87,0.00020273,2]
[364712641,1749216160346,-380.0,0.00020273,2]
[364712642,1749216160372,-1728.71,0.00020273,2]
[364712643,1749216160397,-1131.64,0.00020273,2]
[364712644,1749216160421,-440.0,0.00020273,2]
[364712645,1749216160445,-440.0,0.00020273,2]
[364712646,1749216160470,-2097.68,0.00020273,2]
[364712647,1749216160496,-1330.0,0.00020273,2]
[364712648,1749216160521,-3470.78,0.00020273,2]
[364712649,1749216160548,-480.66,0.00020273,2]
[364712650,1749216160572,-440.0,0.00020273,2]
[364712651,1749216160597,-554.61,0.00020273,2]
[364712652,1749216160621,-440.0,0.00020273,2]
[364712653,1749216160646,-573.62,0.00020273,2]
[364712654,1749216160671,-725.81,0.00020273,2]
[364712655,1749216160694,-440.0,0.00020273,2]
[364712656,1749216160718,-842.08,0.00020273,2]
[364712657,1749216160741,-440.0,0.00020273,2]
[364712658,1749216160764,-440.0,0.00020273,2]
[364712659,1749216160789,-497.11,0.00020273,2]
[364712660,1749216160813,-440.0,0.00020273,2]
[364712661,1749216160837,-440.0,0.00020273,2]
[364712662,1749216160862,-531.61,0.00020273,2]
[364712663,1749216160888,-837.64,0.00020273,2]
[364712664,1749216160911,-440.0,0.00020273,2]
[364712665,1749216160935,-440.0,0.00020273,2]
[364712666,1749216160960,-440.0,0.00020273,2]
[364712667,1749216160985,-649.43,0.00020273,2]
[364712668,1749216161009,-440.0,0.00020273,2]
[364712669,1749216161031,-2506.99,0.00020273,2]
[364712670,1749216161054,-440.0,0.00020273,2]
[364712671,1749216161079,-1792.59,0.00020273,2]
[364712672,1749216161103,-783.69,0.00020273,2]
[364712673,1749216161126,-440.0,0.00020273,2]
[364712674,1749216161150,-1568.96,0.00020273,2]
[364712675,1749216161173,-440.0,0.00020273,2]
[364712676,1749216161195,-834.50537533,0.00020488,2]
[364712677,1749216161218,-160.0,0.00020488,2]
[364712678,1749216161243,-423.83542519,0.00020488,2]
[364712679,1749216161265,-160.0,0.00020488,2]
[364712680,1749216161288,-229.52673067,0.00020488,2]
[364712681,1749216161310,-160.0,0.00020488,2]
[364712682,1749216161332,-160.0,0.00020488,2]
[364712683,1749216161355,-600.0,0.000205,3]
[364712684,1749216161378,-420.0,0.00020547,2]
[364712685,1749216161401,-440.0,0.00020547,2]
[364712686,1749216161424,-499.04,0.00020547,2]
[364712687,1749216161448,-471.87,0.00020547,2]
[364712688,1749216161476,-1728.71,0.00020547,2]
[364712689,1749216161504,-1131.64,0.00020547,2]
[364712690,1749216161529,-185.06,0.00020547,2]
[364712691,1749216161556,-440.0,0.00020547,2]
[364712692,1749216161581,-2097.68,0.00020547,2]
[364712693,1749216161608,-1330.0,0.00020547,2]
[364712694,1749216161632,-3470.78,0.00020547,2]
[364712695,1749216161660,-480.66,0.00020547,2]
[364712696,1749216161685,-440.0,0.00020547,2]
[364712697,1749216161712,-554.61,0.00020547,2]
[364712698,1749216161737,-440.0,0.00020547,2]
[364712699,1749216161763,-725.81,0.00020547,2]
[364712700,1749216161790,-440.0,0.00020547,2]
[364712701,1749216161816,-842.08,0.00020547,2]
[364712702,1749216161843,-440.0,0.00020547,2]
[364712703,1749216161866,-440.0,0.00020547,2]
[364712704,1749216161890,-497.11,0.00020547,2]
[364712705,1749216161913,-440.0,0.00020547,2]
[364712706,1749216161939,-440.0,0.00020547,2]
[364712707,1749216161965,-531.61,0.00020547,2]
[364712708,1749216161991,-837.64,0.00020547,2]
[364712709,1749216162014,-440.0,0.00020547,2]
[364712710,1749216162038,-360.77169749,0.00020547,2]
[364712711,1749216162063,-441.33810003,0.00020547,2]
[364712712,1749216162088,-649.43,0.00020547,2]
[364712713,1749216162112,-440.0,0.00020547,2]
[364712714,1749216162134,-2506.99,0.00020547,2]
[364712715,1749216162160,-440.0,0.00020547,2]
[364712716,1749216162185,-1792.59,0.00020547,2]
[364712717,1749216162212,-783.69,0.00020547,2]
[364712718,1749216162236,-440.0,0.00020547,2]
[364712719,1749216162261,-1568.96,0.00020547,2]
[364712720,1749216162285,-440.0,0.00020547,2]
[364712721,1749216162308,-345.45,0.000206,2]
[364712722,1749216162330,-727.55,0.000206,2]
[364712723,1749216162354,-600.0,0.00020664,2]
[364712724,1749216162377,-842.5625,0.00020669,2]
[364712725,1749216162400,-472.34328759,0.00020773,2]
[364712726,1749216162423,-1500.0,0.00020817,2]
[364712727,1749216162447,-440.0,0.00020821,2]
[364712728,1749216162471,-499.04,0.00020821,2]
[364712729,1749216162496,-471.87,0.00020821,2]
[364712730,1749216162522,-1728.71,0.00020821,2]
[364712731,1749216162548,-1131.64,0.00020821,2]
[364712732,1749216162573,-440.0,0.00020821,2]
[364712733,1749216162597,-2097.68,0.00020821,2]
[364712734,1749216162623,-1330.0,0.00020821,2]
[364712735,1749216162648,-3470.78,0.00020821,2]
[364712736,1749216162673,-480.66,0.00020821,2]
[364712737,1749216162697,-440.0,0.00020821,2]
[364712738,1749216162724,-554.61,0.00020821,2]
[364712739,1749216162748,-440.0,0.00020821,2]
[364712740,1749216162775,-725.81,0.00020821,2]
[364712741,1749216162802,-440.0,0.00020821,2]
[364712742,1749216162826,-842.08,0.00020821,2]
[364712743,1749216162851,-440.0,0.00020821,2]
[364712744,1749216162875,-440.0,0.00020821,2]
[364712745,1749216162900,-497.11,0.00020821,2]
[364712746,1749216162923,-440.0,0.00020821,2]
[364712747,1749216162949,-472.61101958,0.00020821,2]
[364712748,1749216162974,-531.61,0.00020821,2]
[364712749,1749216163000,-837.64,0.00020821,2]
[364712750,1749216163024,-440.0,0.00020821,2]
[364712751,1749216163049,-649.43,0.00020821,2]
[364712752,1749216163073,-440.0,0.00020821,2]
[364712753,1749216163096,-2506.99,0.00020821,2]
[364712754,1749216163120,-440.0,0.00020821,2]
[364712755,1749216163144,-1792.59,0.00020821,2]
[364712756,1749216163169,-783.69,0.00020821,2]
[364712757,1749216163193,-440.0,0.00020821,2]
[364712758,1749216163219,-1568.96,0.00020821,2]
[364712759,1749216163243,-440.0,0.00020821,2]
[364712760,1749216163399,-420.0,0.00020893,2]
[364712761,1749216163425,-420.0,0.00020893,2]
[364712762,1749216163456,-1773.44537117,0.000209,4]
[364712763,1749216163481,-1680.0,0.00020995,2]
[364712764,1749216163505,-449.73962449,0.0002103,2]
[364712765,1749216163538,-1773.44537111,0.00021038,4]
[364712766,1749216163563,-155.0,0.00021095,2]
[364712767,1749216163587,-440.0,0.00021095,2]
[364712768,1749216163613,-499.04,0.00021095,2]
[364712769,1749216163638,-471.87,0.00021095,2]
[364712770,1749216163665,-1728.71,0.00021095,2]
[364712771,1749216163692,-1131.64,0.00021095,2]
[364712772,1749216163718,-440.0,0.00021095,2]
[364712773,1749216163745,-2097.68,0.00021095,2]
[364712774,1749216163770,-1330.0,0.00021095,2]
[364712775,1749216163797,-3470.78,0.00021095,2]
[364712776,1749216163824,-480.66,0.00021095,2]
[364712777,1749216163850,-440.0,0.00021095,2]
[364712778,1749216163878,-554.61,0.00021095,2]
[364712779,1749216163903,-440.0,0.00021095,2]
[364712780,1749216163929,-725.81,0.00021095,2]
[364712781,1749216163954,-440.0,0.00021095,2]
[364712782,1749216163981,-842.08,0.00021095,2]
[364712783,1749216164005,-440.0,0.00021095,2]
[364712784,1749216164030,-440.0,0.00021095,2]
[364712785,1749216164056,-497.11,0.00021095,2]
[364712786,1749216164080,-440.0,0.00021095,2]
[364712787,1749216164105,-531.61,0.00021095,2]
[364712788,1749216164131,-837.64,0.00021095,2]
[364712789,1749216164156,-440.0,0.00021095,2]
[364712790,1749216164181,-649.43,0.00021095,2]
[364712791,1749216164207,-440.0,0.00021095,2]
[364712792,1749216164232,-2506.99,0.00021095,2]
[364712793,1749216164258,-440.0,0.00021095,2]
[364712794,1749216164284,-1792.59,0.00021095,2]
[364712795,1749216164311,-783.69,0.00021095,2]
[364712796,1749216164336,-440.0,0.00021095,2]
[364712797,1749216164363,-1568.96,0.00021095,2]
[364712798,1749216164388,-440.0,0.00021095,2]
[364712799,1749216164422,-1773.44537111,0.00021176,4]
[364712800,1749216164454,-1773.44537111,0.00021314,5]
[364712801,1749216164478,-437.33835115,0.00021317,2]
[364712802,1749216164502,-2000.0,0.00021365,2]
[364712803,1749216164527,-343.75656632,0.00021368,2]
[364712804,1749216164552,-440.0,0.00021369,2]
[364712805,1749216164576,-499.04,0.00021369,2]
[364712806,1749216164602,-471.87,0.00021369,2]
[364712807,1749216164629,-1728.71,0.00021369,2]
[364712808,1749216164655,-1131.64,0.00021369,2]
[364712809,1749216164681,-440.0,0.00021369,2]
[364712810,1749216164707,-2097.68,0.00021369,2]
[364712811,1749216164733,-1330.0,0.00021369,2]
[364712812,1749216164757,-3470.78,0.00021369,2]
[364712813,1749216164784,-480.66,0.00021369,2]
[364712814,1749216164813,-440.0,0.00021369,2]
[364712815,1749216164837,-554.61,0.00021369,2]
[364712816,1749216164862,-440.0,0.00021369,2]
[364712817,1749216164887,-725.81,0.00021369,2]
[364712818,1749216164912,-440.0,0.00021369,2]
[364712819,1749216164939,-842.08,0.00021369,2]
[364712820,1749216164965,-440.0,0.00021369,2]
[364712821,1749216164991,-429.74240688,0.00021369,2]
[364712822,1749216165016,-497.11,0.00021369,2]
[364712823,1749216165041,-440.0,0.00021369,2]
[364712824,1749216165067,-531.61,0.00021369,2]
[364712825,1749216165092,-837.64,0.00021369,2]
[364712826,1749216165117,-307.69989397,0.00021369,2]
[364712827,1749216165142,-649.43,0.00021369,2]
[364712828,1749216165167,-191.55623274,0.00021369,2]
[364712829,1749216165192,-2506.99,0.00021369,2]
[364712830,1749216165222,-240.39441648,0.00021369,2]
[364712831,1749216165248,-1792.59,0.00021369,2]
[364712832,1749216165274,-783.69,0.00021369,2]
[364712833,1749216165299,-440.0,0.00021369,2]
[364712834,1749216165325,-1568.96,0.00021369,2]
[364712835,1749216165349,-440.0,0.00021369,2]
[364712836,1749216165380,-1773.44537111,0.00021452,5]
[364712837,1749216165403,-740.0,0.000215,4]
[364712838,1749216165434,-1773.44537111,0.0002159,5]
[364712839,1749216165459,-432.43591638,0.00021643,2]
[364712840,1749216165484,-499.04,0.00021643,2]
[364712841,1749216165509,-471.87,0.00021643,2]
[364712842,1749216165536,-1728.71,0.00021643,2]
[364712843,1749216165561,-1131.64,0.00021643,2]
[364712844,1749216165588,-440.0,0.00021643,2]
[364712845,1749216165614,-2097.68,0.00021643,2]
[364712846,1749216165640,-1330.0,0.00021643,2]
[364712847,1749216165666,-3470.78,0.00021643,2]
[364712848,1749216165692,-480.66,0.00021643,2]
[364712849,1749216165718,-440.0,0.00021643,2]
[364712850,1749216165743,-554.61,0.00021643,2]
[364712851,1749216165766,-440.0,0.00021643,2]
[364712852,1749216165794,-725.81,0.00021643,2]
[364712853,1749216165818,-440.0,0.00021643,2]
[364712854,1749216165843,-842.08,0.00021643,2]
[364712855,1749216165868,-440.0,0.00021643,2]
[364712856,1749216165893,-497.11,0.00021643,2]
[364712857,1749216165918,-440.0,0.00021643,2]
[364712858,1749216165944,-531.61,0.00021643,2]
[364712859,1749216165969,-837.64,0.00021643,2]
[364712860,1749216165996,-649.43,0.00021643,2]
[364712861,1749216166020,-2506.99,0.00021643,2]
[364712862,1749216166047,-1792.59,0.00021643,2]
[364712863,1749216166072,-783.69,0.00021643,2]
[364712864,1749216166097,-495.43523246,0.00021643,2]
[364712865,1749216166122,-1568.96,0.00021643,2]
[364712866,1749216166146,-440.0,0.00021643,2]
[364712867,1749216166176,-1773.44537111,0.00021728,5]
[364712868,1749216166200,-600.0,0.0002176,2]
[364712869,1749216166224,-701.63426294,0.00021817,2]
[364712870,1749216166255,-1773.44537111,0.00021866,6]
[364712871,1749216166279,-499.04,0.00021917,2]
[364712872,1749216166307,-471.87,0.00021917,2]